Cogmind - Beta 10.2 @@@ ROGUE MODE // 2021.09.28 @ 21:02:24 Player: tokkot Result: Destroyed by S-10 Pest with Light Assault Rifle Performance ------------- Evolutions (2) 1000 Regions Visited (4) 800 Robots Destroyed (38) 190 Value Destroyed (934) 934 Prototype IDs (6) 120 Alien Tech Used (0) 0 Bonus (0) 0 TOTAL SCORE: 3044 Bonus ------- None Cogmind --------- Core Integrity 0/550 Matter 438/450 Energy 45/100 System Corruption 0% Temperature Cool (0) Movement Core (600) Ox11 Location -8/Materials Parts ------- > --- POWER (1) -------- (None) > --- PROPULSION (4) --- (None) > --- UTILITY (3) ------ High-capacity Storage Unit Large Matter Pod > --- WEAPON (3) ------- (None) > --- INVENTORY (12) --- Improved Ion Engine Heat Sink Advanced Sensor Array Field Recycling Unit (0) Peak State ------------ > --- POWER ------------ Ion Engine > --- PROPULSION ------- Light Treads Aluminum Leg Aluminum Leg Flight Unit > --- UTILITY ---------- Cooling System High-capacity Storage Unit Recoil Stabilizer > --- WEAPON ----------- EM Pulse Gun Shock Rifle Assault Rifle > --- INVENTORY -------- Heat Sink Heat Sink Large Matter Pod Advanced Sensor Array Field Recycling Unit Heavy EM Shotgun Beam Rifle Light EM Pulse Cannon EM Pulse Cannon Light Assault Rifle [Rating: 18] Favorites ----------- Power Ion Engine Engine Ion Engine Propulsion Aluminum Leg Treads Light Treads Leg Aluminum Leg Wheel Wheel Hover Unit Backup Propulsion I Flight Unit Flight Unit Utility High-capacity Storage Unit Device Cooling System Storage High-capacity Storage Unit Weapon EM Pulse Gun Energy Gun EM Pulse Gun Energy Cannon EM Pulse Cannon Ballistic Gun Assault Rifle Build | -11 -10 -9 -9 -8 ------- Run | Scr Mat Mat Min Mat Slots Evolved 4 | . . 2 . 2 Power . | . . . . . Propulsion 2 | . . 2 . . Utility 1 | . . . . 1 Weapon 1 | . . . . 1 Parts Attached 51 | 6 14 11 . 20 Power 4 | 1 2 . . 1 Engine 4 | 1 2 . . 1 Core . | . . . . . Reactor . | . . . . . Propulsion 16 | 2 4 4 . 6 Treads 1 | . . . . 1 Leg 13 | 2 3 4 . 4 Wheel 1 | . 1 . . . Hover . | . . . . . Flight 1 | . . . . 1 Utility 8 | 1 3 1 . 3 Device 3 | . . 1 . 2 Storage 5 | 1 3 . . 1 Processor . | . . . . . Hackware . | . . . . . Protection . | . . . . . Artifact . | . . . . . Weapon 23 | 2 5 6 . 10 Energy Gun 11 | 2 2 . . 7 Energy Cannon 2 | . . . . 2 Ballistic Gun 10 | . 3 6 . 1 Ballistic Cannon . | . . . . . Launcher . | . . . . . Special Weapon . | . . . . . Impact Weapon . | . . . . . Slashing Weapon . | . . . . . Piercing Weapon . | . . . . . Special Melee Weapon . | . . . . . Unidentified Prototypes . | . . . . . Parts Lost 29 | . . 6 2 21 Power 2 | . . . . 2 Propulsion 10 | . . 3 1 6 Utility 2 | . . . . 2 Weapon 15 | . . 3 1 11 Highest Loss Streak 11 | . . 3 1 11 Average Slot Usage (%) 85 | . 96 89 67 77 Engine 8 | . 13 11 11 2 Treads 3 | . . . . 7 Leg 22 | . 26 35 13 13 Hover 1 | . . . . 2 Flight 2 | . . . . 6 Device 6 | . . . 11 13 Storage 17 | . 27 20 11 9 Energy Gun 14 | . 25 6 . 12 Ballistic Gun 8 | . 1 15 20 8 Naked Turns . | . . . . . Heaviest Build 59 | 13 59 46 42 52 Greatest Support 40 | 20 20 40 20 23 Greatest Overweight (x) 13 | 1 5 4 4 13 Average Overweight (x) 1 | . 1 1 3 2 Largest Inventory Capacity 18 | 6 18 12 12 12 Average Capacity 12 | 5 13 12 12 12 Most Carried 12 | 6 12 11 9 11 Average Carried 8 | 3 8 10 9 8 Final Capacity 12 | 6 12 12 12 12 Final Carried 12 | 6 12 9 9 4 Class Distribution -------------------- 55% | Mutant 23% | Scavenger-Mutant 21% | Gunner Dominant Class ---------------- Mutant | -10/Materials Scavenger-Mutant | -9/Materials Mutant | -9/Mines Gunner | -8/Materials Resources | -11 -10 -9 -9 -8 ----------- Run | Scr Mat Mat Min Mat Matter Collected 1092 | 239 319 286 25 223 Remotely . | . . . . . Salvage Created 1473 | . 410 388 27 648 Parts 80 | . 18 20 6 36 Haulers Intercepted 1 | . . 1 . . Recyclers Shooed 4 | . 2 1 . 1 Parts Field Recycled . | . . . . . Retrieved Matter . | . . . . . Parts Self-Destructed . | . . . . . Prevented . | . . . . . Kills | -11 -10 -9 -9 -8 ------- Run | Scr Mat Mat Min Mat Combat Hostiles Destroyed 29 | . 7 6 2 14 Guns 26 | . 7 6 2 11 Cannons 1 | . . . . 1 AOE 2 | . . . . 2 Classes Destroyed 9 | . 5 3 . 1 Worker 1 | . 1 . . . Hauler 1 | . . 1 . . Recycler 3 | . 2 . . 1 Operator 1 | . 1 . . . Watcher 3 | . . 1 . 2 Swarmer 12 | . 3 . 2 7 Grunt 10 | . 4 3 . 3 Duelist 2 | . . . . 2 Sentry 5 | . . 3 . 2 Best Kill Streak 4 | . 3 4 1 4 Combat Bots Only 4 | . 3 4 1 4 Max Kills in Single Turn 2 | . 1 1 1 2 Gunslinging . | . . . . . Exploded 2 | . . . . 2 Melee . | . . . . . Uniques/NPCs Destroyed . | . . . . . Combat | -11 -10 -9 -9 -8 -------- Run | Scr Mat Mat Min Mat Damage Taken 3083 | . 300 633 133 2017 Core 739 | . 61 81 45 552 Absorbed by Shields . | . . . . . Core Remaining (%) 81 | 100 75 . 68 . Volleys Fired 136 | . 36 39 8 53 Largest 3 | . 2 2 2 3 Hottest 133 | . 96 96 40 133 Shots Fired 261 | . 71 72 14 104 Gun 256 | . 71 72 14 99 Cannon 5 | . . . . 5 Launcher . | . . . . . Special . | . . . . . Kinetic 125 | . 2 58 14 51 Thermal 42 | . 27 5 . 10 Explosive . | . . . . . Electromagnetic 94 | . 42 9 . 43 Robot Hit Streak 9 | . 4 9 3 7 Robot Miss Streak 4 | . 3 4 3 3 Penetration Max . | . . . . . Secondary Targets 4 | . 1 2 1 . Max Gunslinging Chain 1 | . 1 1 1 . Shots Hit Robots 148 | . 37 46 5 60 Core Hits 59 | . 12 16 2 29 Critical Hits 2 | . . 1 . 1 Critical Kills . | . . . . . Critical Parts Destroyed 1 | . . 1 . . Melee Attacks . | . . . . . Impact . | . . . . . Slashing . | . . . . . Piercing . | . . . . . Sneak Attacks . | . . . . . Combat Hostiles . | . . . . . Follow-up Attacks . | . . . . . Damage Inflicted 2022 | . 443 652 35 892 Guns 1835 | . 443 652 35 705 Cannons 46 | . . . . 46 Explosions 141 | . . . . 141 Melee . | . . . . . Ramming . | . . . . . Kinetic 862 | . 15 525 35 287 Thermal 394 | . 160 29 . 205 Explosive . | . . . . . Electromagnetic 766 | . 268 98 . 400 Impact . | . . . . . Slashing . | . . . . . Piercing . | . . . . . Highest Corruption . | . . . . . Average Corruption . | . . . . . Corruption Purged . | . . . . . Overload Shots . | . . . . . Overflow Damage . | . . . . . Projectiles . | . . . . . Explosions . | . . . . . Melee . | . . . . . Knockbacks . | . . . . . Impact . | . . . . . Kinetic . | . . . . . Secondary . | . . . . . Self-Inflicted Damage 47 | . . . . 47 Shots 1 | . . . . 1 Rammed 1 | . . . . 1 Targets Rammed 1 | . . . . 1 Kicked . | . . . . . Crushed . | . . . . . Highest Temperature 391 | . 391 69 . 141 Average Temperature 63 | . 95 29 . 28 Received Heat Transfer 1101 | . 120 279 . 702 Effects 2 | . 2 . . . Energy Bleed 1 | . 1 . . . Short Circuit 1 | . 1 . . . Siege Activations . | . . . . . Robots Corrupted . | . . . . . Combat Hostiles . | . . . . . Parts Fried 6 | . 3 1 . 2 Impact Corruptions . | . . . . . Robots Melted . | . . . . . Combat Hostiles . | . . . . . Parts Melted 3 | . 2 . . 1 Heat Transferred 816 | . 407 74 . 335 Parts Sabotaged . | . . . . . Parts Stolen . | . . . . . Parts Stripped . | . . . . . Power Chain Reactions 2 | . . . . 2 Missiles Intercepted . | . . . . . Alert | -11 -10 -9 -9 -8 ------- Run | Scr Mat Mat Min Mat Peak Influence 304 | . 145 205 40 304 Initial 61 | . . 61 1 11 Average 75 | . 46 93 14 102 Maximum Alert Level 1 | . . 1 . 1 Low Security (%) 92 | 100 100 91 100 86 Level 1 7 | . . 8 . 13 Level 2 . | . . . . . Level 3 . | . . . . . Level 4 . | . . . . . Level 5 . | . . . . . High Security . | . . . . . Max Security . | . . . . . Squads Dispatched 3 | . 2 . . 1 Investigation . | . . . . . Extermination . | . . . . . Reinforcement 3 | . 2 . . 1 Assault . | . . . . . Garrison . | . . . . . Intercept . | . . . . . Construction Impeded . | . . . . . Haulers Reinforced . | . . . . . Stealth | -11 -10 -9 -9 -8 --------- Run | Scr Mat Mat Min Mat Distress Signals 9 | . 3 1 . 5 Communications Jammed . | . . . . . Distress Signals . | . . . . . Times Spotted 71 | . 13 13 9 36 Peak Tracking Total 12 | . 4 4 5 12 Tactical Retreats 4 | . 1 . . 3 Traps | -11 -10 -9 -9 -8 ------- Run | Scr Mat Mat Min Mat Traps Triggered 3 | . 3 . . . Indirectly . | . . . . . Trap Hack Attempts . | . . . . . Triggered . | . . . . . Disarmed . | . . . . . Reprogrammed . | . . . . . Reused . | . . . . . Traps Extracted . | . . . . . Installed . | . . . . . Triggered . | . . . . . Machines | -11 -10 -9 -9 -8 ---------- Run | Scr Mat Mat Min Mat Machines Disabled . | . . . . . Max in Single Turn . | . . . . . Machines Sabotaged . | . . . . . Garrisons Compromised . | . . . . . Overloaded Fab Kills . | . . . . . Fab Network Shutdowns . | . . . . . Hacking | -11 -10 -9 -9 -8 --------- Run | Scr Mat Mat Min Mat Machines Accessed 10 | . 2 2 . 6 Terminals 5 | . 1 . . 4 Fabricators . | . . . . . Repair Stations 1 | . . . . 1 Recycling Units 2 | . 1 1 . . Scanalyzers 2 | . . 1 . 1 Garrison Access . | . . . . . Total Hacks 19 | . 4 4 . 11 Successful 12 | . 2 2 . 8 Failed 7 | . 2 2 . 3 Catastrophic . | . . . . . Database Lockouts . | . . . . . Manual . | . . . . . Terminals 9 | . 2 . . 7 Fabricators . | . . . . . Repair Stations 1 | . . . . 1 Recycling Units 4 | . 2 2 . . Scanalyzers 5 | . . 2 . 3 Garrison Access . | . . . . . Terminal Hacks 6 | . 2 . . 4 Record 1 | . 1 . . . Prototype ID Bank 2 | . . . . 2 Locate Traps 1 | . . . . 1 Dispatch Records 1 | . . . . 1 Zone Layout 1 | . 1 . . . Fabricator Hacks . | . . . . . Repair Station Hacks 1 | . . . . 1 Refit 1 | . . . . 1 Recycling Unit Hacks . | . . . . . Scanalyzer 5 | . . 2 . 3 Insert Component 2 | . . 1 . 1 Analyze 3 | . . 1 . 2 Garrison Access Hacks . | . . . . . Unauthorized Hacks . | . . . . . Terminals . | . . . . . Fabricators . | . . . . . Repair Stations . | . . . . . Recycling Units . | . . . . . Scanalyzers . | . . . . . Garrison Access . | . . . . . Data Cores Recovered 1 | . 1 . . . Used . | . . . . . Hacking Detections 5 | . 1 2 . 2 Full Trace Events . | . . . . . Feedback Events . | . . . . . Feedback Blocked . | . . . . . Robot Schematics Acquired . | . . . . . Robots Built . | . . . . . Matter . | . . . . . Time . | . . . . . Total Robot Build Rating . | . . . . . Part Schematics Acquired 2 | . . 1 . 1 Parts Built . | . . . . . Matter . | . . . . . Time . | . . . . . Total Part Build Rating . | . . . . . Parts Repaired . | . . . . . Time . | . . . . . Parts Recycled . | . . . . . Recycled Matter . | . . . . . Retrieved Matter . | . . . . . Retrieved Components . | . . . . . Parts Scanalyzed 2 | . . 1 . 1 Part Schematics Acquired 2 | . . 1 . 1 Parts Damaged . | . . . . . Bothacking | -11 -10 -9 -9 -8 ------------ Run | Scr Mat Mat Min Mat Used RIF Installer . | . . . . . Robots Hacked . | . . . . . Non-combat . | . . . . . Combat . | . . . . . Robot Hacks Applied . | . . . . . Relay Couplers Released . | . . . . . Robots Rewired . | . . . . . Allies Hacked . | . . . . . Hacks Repelled . | . . . . . Allies | -11 -10 -9 -9 -8 -------- Run | Scr Mat Mat Min Mat Total Allies . | . . . . . Largest Group . | . . . . . Highest-Rated Group . | . . . . . Highest-Rated Ally . | . . . . . Total Orders . | . . . . . Ally Attacks . | . . . . . Total Damage . | . . . . . Kills . | . . . . . Allies Corrupted . | . . . . . Allies Melted . | . . . . . Intel | -11 -10 -9 -9 -8 ------- Run | Scr Mat Mat Min Mat Robot Analysis Total . | . . . . . Derelict Logs Recovered . | . . . . . Drone Launches . | . . . . . Drone Recoveries . | . . . . . Exploration | -11 -10 -9 -9 -8 ------------- Run | Scr Mat Mat Min Mat Turns Passed 2077 | 110 602 445 81 839 Spaces Moved 855 | 82 266 205 23 279 Core 7 | 6 . . . 1 Treads 46 | . . . . 46 Legs 795 | 76 259 205 23 232 Wheels 7 | . 7 . . . Hover . | . . . . . Flight . | . . . . . Fastest Speed 50 | 50 120 150 180 150 Average Speed 169 | 116 165 156 234 193 Slowest Speed 700 | 120 270 240 240 700 Overloaded Moves . | . . . . . Propulsion Burnouts . | . . . . . Robots Hopped . | . . . . . Cave-ins Triggered . | . . . . . Exploration Rate (%) 22 | 5 37 29 15 24 Regions Visited 4 Branch Regions 1 Pre-discovered Areas . | . . . . . Known Exits Taken . | . . . . . Unknown Exits Taken 4 | 1 1 1 1 . Scrap Searched . | . . . . . Spaces Dug . | . . . . . Terrain Destroyed 13 | . . . . 13 Melee . | . . . . . Projectile . | . . . . . AOE 13 | . . . . 13 Terrain Rammed . | . . . . . Walls Destroyed . | . . . . . Machines Disabled . | . . . . . Actions | -11 -10 -9 -9 -8 --------- Run | Scr Mat Mat Min Mat Total 1249 | 94 358 269 38 490 Wait 164 | . 21 10 8 125 Move 851 | 81 265 204 22 279 Hop . | . . . . . Pick Up 31 | 7 13 1 . 10 Fast Attach 17 | 5 7 2 . 3 Attach 29 | 1 4 8 . 16 Detach 6 | . 2 4 . . Swap 5 | . 3 1 . 1 Drop 9 | . 7 . . 2 Fire 136 | . 36 39 8 53 Melee . | . . . . . Ram 1 | . . . . 1 Kick . | . . . . . Crush . | . . . . . Escape Stasis . | . . . . . Rewire . | . . . . . Trap . | . . . . . Miscellaneous . | . . . . . Route ------- -11/Scrapyard -10/Materials -9/Materials -9/Mines -8/Materials History --------- Turn | Location | Event 7 | -11/Scrapyard | Discovered new exit (range 15) 111 | -11/Scrapyard | Entered Materials 329 | -10/Materials | Build established: Mutant 614 | -10/Materials | Discovered new exit (range 10) 713 | -10/Materials | Entered another Materials area 713 | -9/Materials | Evolved 2 slots: Propulsion x2 1046 | -9/Materials | Lost 3 parts (3n) 1143 | -9/Materials | Discovered new exit (range 9) 1158 | -9/Materials | Entered Mines 1167 | -9/Mines | Met a Derelict bent on vengeance 1215 | -9/Mines | Discovered new exit (range 7) 1239 | -9/Mines | Entered Materials 1239 | -8/Materials | Evolved 2 slots: Utility x1, Weapon x1 1982 | -8/Materials | Lost 7 parts (2n2u3w) 2064 | -8/Materials | Core integrity fell below 50% 2074 | -8/Materials | Core integrity fell below 20% 2078 | -8/Materials | Destroyed by S-10 Pest with Light Assault Rifle Last Messages --------------- 02058_ Flight Unit destroyed. 02061_ S-10 Pest destroyed. 02063_ K-01 Serf collects debris. 02065_ Particle Gun destroyed. 02065_ L-31 Rogue destroyed. 02066_ K-01 Serf collects debris. 02067_ Lgt. EM Pulse Cannon destroyed. 02067_ K-01 Serf collects debris. 02068_ S-10 Pest destroyed. 02068_ G-47 Trooper destroyed. 02069_ K-01 Serf collects debris. 02069_ G-47 Trooper misfires. 02069_ Beam Rifle destroyed. 02070_ K-01 Serf collects debris. 02070_ Dropped Heat Sink. 02073_ K-01 Serf collects debris. 02075_ Slammed into G-47 Trooper. 02077_ K-01 Serf collects debris. 02077_ W-25 Informer sends out distress signal. 02077_ K-01 Serf collects debris. Map ----- +----------------------------------------------------+ | ###??????????????????????????????????????????????? | | ?????????????????????????????????????????????????? | | ?????????????????????????????????????????????????? | | ?????????????????????????????????????????????????? | | ?????????????????????????????????????????????????? | | ?????????????????????????????????????????????????? | | #######??????????????????????????????????????????? | | #??????????????????????????????????????????? | | """ #??????????????????????????????????????????? | | ! """ #??????????????????????????????????????????? | | """ #?????????????????? ?????????????????????? | | #??????????????????w +????????????????????? | | / #?????????????????? #????????????????????? | | ###############?????????? #????????????????????? | | ???# *%! #?????????? #????????????????????? | | ???# T !""" #??????????? #????????????????????? | | ???# """""#??????????? #????????????????????? | | ???# """""#??????????# r#????????????????????? | | ???# """""#??????????+ #????????????????????? | | ???# """ #??????????# #????????????????????? | | ???# #??????????# #????????????????????? | | #### = %% #?????????## ##???????????????????? | | ########/############### #???????????????????? | | ^ % r #???????????????????? | | % ^ =[g%sT #???????????????????? | | ^ %a k[Yk@g !#???????????????????? | | ####### ###+##########gsg #???????????????????? | | #####?# # % % #???###! #???????????????????? | | ??????# # " ####### %" ??????????????? | | ??????# # """ / ?????????????? | | ??????# # S" ####### u #??????????? | | ??????# # #???????###### ???????????? | | ??????# #%""" = #??????????????w #???????????? | | ??????# #=""" #??????????????? #???????????? | | ??????# #!""" #?????????????????#???????????? | | ??????# # #?????????????????????????????? | | ####### ## #######?????????????????????????????? | | ####???????????????????????????????????? | | #??????????????????????????????????????? | | ???????????????????????????????????????? | | ####### ????????????????????????????????????????? | | ???????^^^???????????????????????????????????????? | | ?????????????????????????????????????????????????? | | ####?????????????????????????????????????????????? | | #?????????????????????????????????????????????? | | " #?????????????????????????????????????????????? | | " #?????????????????????????????????????????????? | | " #?????????????????????????????????????????????? | | #?????????????????????????????????????????????? | | #?????????????????????????????????????????????? | +----------------------------------------------------+ Best States ------------- Heat Dissipation 53 Energy Generation 10 Energy Capacity 250 Matter Stores 450 Matter Capacity 450 Sight Range 16 Terrain Scan Density 10 Evasion (%) 40 Recoil Reduction 3 Item Schematics ----------------- Autogun | -9/Materials | Scanalyzed Hvy. EM Shotgun | -8/Materials | Scanalyzed Robot Schematics ------------------ None Fabricated ------------ Nothing Alien Tech Used ----------------- None Achievements -------------- Safety First Challenges ------------ None Game ------ Seed InertialBiometalInjector Manual? 0 Play Time 00:51:41 Cumulative 5.2 hours Start 2021.09.28 @ 20:05:11 End 2021.09.28 @ 21:02:24 Sessions 3 Manual Loads 0 Difficulty Rogue Special Mode None Game No. 4 Rogue 4 Adventurer 0 Explorer 0 Win Type - Total 0 Types 0/0/0/0/0/0/0/0/0 Lore% 5 Gallery% 7 Achievement% 8 Wizard Run 0 Options --------- ASCII 1 Keyboard 1 Movement Vi Keybinds 0 Fullscreen 1 Font 18/SmallcapsGlow Map View 76x50 Tactical HUD 1 Map Filters NONE Filters NONE Steam 1 RUN: 87943ed5-1cc5-4951-9eb6-88155d2044e1